bitfinex/quotes_SOLUSD_20260213
["timestamp","ask_amount","ask_price","bid_price","bid_amount"]
[1770941281865,12.7201599,78.616,78.583,0.47939574]
[1770941283468,12.7201599,78.616,78.584,12.72523668]
[1770941283667,12.7201599,78.616,78.585,0.47939574]
[1770941283851,12.71827743,78.627,78.591,0.47939574]
[1770941284050,44.51397102,78.627,78.591,0.47939574]
[1770941284256,9.88891738,78.61,78.591,0.47939574]
[1770941284456,9.88891738,78.62,78.591,0.47939574]
[1770941285466,9.88891738,78.61,78.581,0.47939574]
[1770941285844,0.38464873,78.615,78.581,0.47939574]
[1770941286259,9.88891738,78.61,78.581,0.47939574]
[1770941287174,9.88891738,78.61,78.583,0.47939574]
[1770941287671,9.88891738,78.59,78.568,0.47939574]
[1770941288870,9.88891738,78.59,78.56,1e-08]
[1770941289368,9.88891738,78.58,78.56,1e-08]
[1770941289610,9.88891738,78.57,78.56,1e-08]
[1770941289753,10.27271462,78.57,78.56,1e-08]
[1770941290768,9.88891738,78.57,78.56,1e-08]
[1770941291470,44.44,78.579,78.56,1e-08]
[1770941291768,0.38338603,78.577,78.56,1e-08]
[1770941292573,9.88891738,78.57,78.56,1e-08]
[1770941292753,0.38338603,78.577,78.56,1e-08]
[1770941293492,9.88891738,78.57,78.56,1e-08]
[1770941294998,13.1089951,78.578,78.56,1e-08]
[1770941295372,9.88891738,78.57,78.56,1e-08]
[1770941295592,12.72653227,78.576,78.56,1e-08]
[1770941295999,0.38259156,78.575,78.56,1e-08]
[1770941296499,9.88891738,78.57,78.56,1e-08]
[1770941297275,10.27112526,78.57,78.56,1e-08]
[1770941297480,12.72766612,78.569,78.56,1e-08]
[1770941297675,12.72766612,78.569,78.55,1e-08]
[1770941297676,0.38220788,78.568,78.55,1e-08]
[1770941297873,0.18220788,78.559,78.55,1e-08]
[1770941298279,9.88891738,78.56,78.55,1e-08]
[1770941300493,12.72928626,78.559,78.55,1e-08]
[1770941301594,4.43621513,78.56,78.55,1e-08]
[1770941301897,12.72831413,78.565,78.551,0.47939574]
[1770941302571,12.72831413,78.565,78.55,1e-08]
[1770941303077,4.43621513,78.56,78.55,1e-08]
[1770941303597,4.43621513,78.56,78.53,0.2]
[1770941303598,0.18110863,78.559,78.53,0.01889138]
[1770941303779,4.43621513,78.54,78.53,0.01889138]
[1770941305778,4.43621513,78.55,78.53,0.01889138]
[1770941306291,89.27306906,78.558,78.519,0.47939574]
[1770941306292,4.43621513,78.54,78.519,0.47939574]
[1770941306590,4.43621513,78.54,78.5,17.37503153]
[1770941306591,4.43621513,78.53,78.511,0.50765777]
[1770941306793,4.43621513,78.54,78.511,0.50765777]
[1770941307181,4.43621513,78.53,78.511,0.50765777]
[1770941309016,12.73252778,78.539,78.511,0.50765777]
[1770941309308,12.73157691,78.545,78.513,0.50765777]
[1770941309790,4.43621513,78.54,78.513,0.50765777]
[1770941309985,44.74,78.55,78.513,0.50765777]
[1770941310190,49.17621513,78.55,78.513,0.50765777]
[1770941310992,49.17621513,78.55,78.512,12.73690646]
[1770941310993,4.43621513,78.55,78.514,12.73658201]
[1770941311203,4.43621513,78.55,78.515,0.50765777]
[1770941312015,17.16708416,78.55,78.515,0.50765777]
[1770941314002,17.16708416,78.55,78.517,0.50765777]
[1770941315506,17.16708416,78.55,78.518,12.73593316]
[1770941315807,4.43621513,78.55,78.521,0.50765777]
[1770941318409,17.16695987,78.55,78.521,0.50765777]
[1770941318609,17.16695987,78.55,78.522,0.50765777]
[1770941320993,4.43621513,78.55,78.523,12.73512219]
[1770941321214,4.43621513,78.55,78.524,0.50765777]
[1770941322719,12.73090682,78.549,78.524,0.50765777]
[1770941322915,4.43621513,78.54,78.524,0.50765777]
[1770941323116,4.43621513,78.54,78.51,32.04294403]
[1770941323117,4.43621513,78.55,78.526,0.50765777]
[1770941325297,44.92,78.567,78.531,0.50765777]
[1770941325493,4.43621513,78.58,78.531,0.50765777]
[1770941325808,44.92,78.578,78.541,0.50765777]
[1770941326714,4.43621513,78.57,78.541,0.50765777]
[1770941326910,4.43516037,78.57,78.541,0.50765777]
[1770941328021,12.72637031,78.577,78.543,0.50765777]
[1770941329403,12.72637031,78.577,78.545,0.50765777]
[1770941330619,4.43516037,78.57,78.545,0.50765777]
[1770941331228,12.72637031,78.577,78.545,0.50765777]
[1770941331811,12.72637031,78.577,78.547,0.50765777]
[1770941335408,12.72637031,78.577,78.549,0.50765777]
[1770941337133,4.43516037,78.57,78.549,0.50765777]
[1770941338134,44.92,78.578,78.551,0.50765777]
[1770941338326,4.43516037,78.58,78.551,0.50765777]
[1770941340235,17.16107148,78.58,78.553,0.50765777]
[1770941341121,4.43516037,78.58,78.553,0.50765777]
[1770941341711,4.43516037,78.6,78.552,12.73042061]
[1770941341712,12.72159907,78.607,78.561,0.50765777]
[1770941341911,4.43516037,78.6,78.561,0.50765777]
[1770941342212,4.43516037,78.6,78.563,0.50765777]
[1770941343017,45.04,78.605,78.571,0.50765777]
[1770941343221,12.71986811,78.618,78.571,0.50765777]
[1770941343525,4.43516037,78.59,78.565,0.50765777]
[1770941344223,4.43516037,78.58,78.541,13.23986133]
[1770941344423,4.43516037,78.58,78.542,0.50765777]
[1770941347217,4.43516037,78.58,78.53,4.43516037]
[1770941347218,12.72604639,78.579,78.544,0.50765777]
[1770941347414,4.43516037,78.57,78.544,0.50765777]
[1770941350545,4.43516037,78.57,78.546,0.50765777]
[1770941352541,12.72766612,78.569,78.546,0.50765777]
[1770941353847,4.43516037,78.57,78.546,0.50765777]
[1770941354155,45.06,78.594,78.551,0.50765777]
[1770941354323,4.43516037,78.59,78.551,0.50765777]
[1770941355130,4.43516037,78.58,78.551,0.50765777]
[1770941357530,4.43516037,78.57,78.551,0.50765777]
[1770941359347,17.16274,78.57,78.551,0.50765777]
[1770941360152,17.16274,78.57,78.535,0.50765777]
[1770941361549,17.16274,78.57,78.537,0.50765777]
[1770941362040,12.72621786,78.578,78.537,0.50765777]
[1770941363246,12.72621786,78.578,78.539,0.50765777]
[1770941366743,4.43516037,78.57,78.529,12.73414916]
[1770941366960,4.43516037,78.56,78.53,0.50765777]
[1770941367362,4.43516037,78.57,78.53,0.50765777]
[1770941368464,4.43516037,78.57,78.531,0.50765777]
[1770941369764,4.43516037,78.56,78.533,0.50765777]
[1770941372664,12.72761548,78.57,78.535,0.50765777]
[1770941372864,17.16277585,78.57,78.535,0.50765777]
[1770941373561,4.43516037,78.56,78.535,0.50765777]
[1770941373961,17.16277585,78.57,78.535,0.50765777]
[1770941374467,17.16277585,78.57,78.536,0.50765777]
[1770941375073,17.16277585,78.57,78.537,12.73285203]
[1770941375252,17.16277585,78.57,78.538,0.50765777]
[1770941376274,17.16277585,78.57,78.54,0.50765777]
[1770941378269,4.43516037,78.56,78.54,0.50765777]
[1770941379665,4.43516037,78.56,78.541,0.50765777]
[1770941380072,12.72928626,78.559,78.535,0.50765777]
[1770941382076,12.72928626,78.559,78.536,0.50765777]
[1770941385580,4.43516037,78.56,78.536,0.50765777]
[1770941385878,17.16436563,78.56,78.536,0.50765777]
[1770941387374,17.16436563,78.56,78.525,0.50765777]
[1770941387576,48.98717622,78.56,78.525,0.50765777]
[1770941387778,48.98717622,78.56,78.51,4.63516037]
[1770941387779,4.43516037,78.54,78.51,0.2]
[1770941387979,4.43516037,78.54,78.511,0.50765777]
[1770941388976,4.43895337,78.54,78.511,0.50765777]
[1770941389687,4.43895337,78.54,78.51,12.93708563]
[1770941389688,12.73252778,78.539,78.512,0.50765777]
[1770941389888,4.43895337,78.53,78.512,0.50765777]
[1770941390089,4.43895337,78.53,78.51,0.2]
[1770941390090,4.43895337,78.53,78.51,0.70765777]
[1770941390387,4.43895337,78.53,78.51,0.2]
[1770941391087,89.78384725,78.539,78.51,0.2]
[1770941391088,4.43895337,78.52,78.51,0.2]
[1770941392989,4.43895337,78.53,78.51,0.2]
[1770941394877,4.43895337,78.53,78.51,0.70765777]
[1770941395079,17.17297794,78.53,78.511,0.50765777]
[1770941395988,12.73334644,78.534,78.511,0.50765777]
[1770941396683,12.73252611,78.54,78.512,0.50765777]
[1770941397195,4.43895337,78.54,78.512,0.50765777]
[1770941398575,12.73139306,78.546,78.514,0.50765777]
[1770941399398,4.43895337,78.54,78.514,0.50765777]
[1770941400477,4.43895337,78.54,78.514,12.73651071]
[1770941400679,12.73139306,78.546,78.515,0.50765777]
[1770941401797,4.43895337,78.53,78.511,0.50765777]
[1770941403892,4.43895337,78.53,78.513,0.50765777]
[1770941404288,12.73254194,78.539,78.513,0.50765777]
[1770941405484,4.43895337,78.54,78.513,0.50765777]
[1770941406187,12.73189801,78.543,78.51,0.2]
[1770941406188,12.73189801,78.543,78.515,0.50765777]
[1770941406701,12.7308085,78.55,78.521,0.50765777]
[1770941406881,17.16976187,78.55,78.521,0.50765777]
[1770941408292,17.16976187,78.55,78.522,0.50765777]
[1770941409898,4.43895337,78.54,78.517,12.7360489]
[1770941410105,4.43895337,78.54,78.518,0.50765777]
[1770941410399,4.43895337,78.56,78.518,0.50765777]
[1770941410400,12.73252778,78.539,78.518,0.50765777]
[1770941410586,4.43895337,78.54,78.518,0.50765777]
[1770941410903,12.73195318,78.543,78.518,0.50765777]
[1770941411501,45.36,78.55,78.521,0.50765777]
[1770941411800,12.73070535,78.551,78.521,0.50765777]
[1770941411992,4.43895337,78.58,78.541,0.50765777]
[1770941413101,12.72604639,78.579,78.543,0.50765777]
[1770941413692,4.43895337,78.58,78.543,0.50765777]
[1770941413896,4.43895337,78.58,78.542,44.56214508]
[1770941413897,57.42,78.621,78.561,0.50765777]
[1770941414112,4.61729252,78.609,78.561,0.50765777]
[1770941414987,12.72135151,78.608,78.563,0.50765777]
[1770941415204,4.43895337,78.6,78.563,0.50765777]
[1770941417596,4.43895337,78.59,78.565,0.50765777]
[1770941418306,12.72280817,78.599,78.565,0.50765777]
[1770941418508,4.43895337,78.59,78.565,0.50765777]
[1770941418892,4.43895337,78.59,78.556,0.50765777]
[1770941419200,4.43895337,78.58,78.556,0.50765777]
[1770941420015,45.4,78.589,78.547,31.82790035]
[1770941420016,45.4,78.589,78.558,0.50765777]
[1770941420191,45.4,78.589,78.561,0.50765777]
[1770941420512,4.43895337,78.59,78.561,0.50765777]
[1770941422009,12.72442708,78.589,78.561,0.50765777]
[1770941422202,12.72386296,78.593,78.562,0.50765777]
[1770941422823,45.4,78.597,78.562,0.50765777]
[1770941422989,45.4,78.597,78.561,12.72893067]
[1770941422990,45.4,78.597,78.571,0.50765777]
[1770941423389,12.7232938,78.596,78.571,0.50765777]
[1770941426517,45.4,78.597,78.573,0.50765777]
[1770941426894,58.12320894,78.597,78.573,0.50765777]
[1770941428415,45.4,78.597,78.573,0.50765777]
[1770941428908,12.71795393,78.629,78.581,0.50765777]
[1770941429109,4.43895337,78.6,78.575,0.50765777]
[1770941429815,12.72280817,78.599,78.575,0.50765777]
[1770941432108,12.72223228,78.603,78.576,0.50765777]
[1770941432413,45.48,78.613,78.581,0.50765777]
[1770941432610,4.43895337,78.61,78.581,0.50765777]
[1770941434615,12.72118968,78.609,78.581,0.50765777]
[1770941437811,4.43895337,78.6,78.581,0.50765777]
[1770941438214,44.52416389,78.609,78.581,0.50765777]
[1770941441922,4.43895337,78.59,78.551,0.50765777]
[1770941442220,4.43895337,78.6,78.561,0.50765777]
[1770941442423,45.58,78.599,78.561,0.50765777]
[1770941446200,12.72297005,78.598,78.562,0.50765777]
[1770941448931,12.72297005,78.598,78.564,0.50765777]
[1770941451710,12.72297005,78.598,78.566,0.50765777]
[1770941454104,12.72297005,78.598,78.568,0.50765777]
[1770941456510,12.72297005,78.598,78.57,0.50765777]
[1770941459906,50.11192874,78.6,78.572,0.50765777]
[1770941459907,45.68,78.6,78.572,0.50765777]
[1770941460213,12.72181636,78.606,78.572,0.50765777]
[1770941460632,12.72115322,78.61,78.572,0.50765777]
[1770941461628,4.43192874,78.61,78.573,12.72701818]
[1770941461827,4.43192874,78.6,78.574,0.50765777]
[1770941462034,4.43192874,78.61,78.574,0.50765777]
[1770941462250,4.43192874,78.6,78.574,0.50765777]
[1770941462424,4.61729252,78.612,78.541,0.50765777]
[1770941462732,4.61729252,78.612,78.542,0.50765777]
[1770941462733,4.43192874,78.56,78.542,0.50765777]
[1770941462935,4.43192874,78.6,78.527,0.50765777]
[1770941462936,4.43192874,78.55,78.527,0.50765777]
[1770941463342,4.43192874,78.54,78.527,0.50765777]
[1770941463537,4.43192874,78.54,78.515,0.50765777]
[1770941464316,4.43192874,78.54,78.517,0.50765777]
[1770941464921,4.43192874,78.56,78.521,0.50765777]
[1770941465138,4.43192874,78.55,78.521,0.50765777]
[1770941465344,4.43192874,78.54,78.521,0.50765777]
[1770941465732,4.43192874,78.55,78.521,0.50765777]
[1770941467013,4.43192874,78.54,78.521,0.50765777]
[1770941469628,4.43192874,78.54,78.511,0.50765777]
[1770941470626,4.43192874,78.53,78.51,0.2]
[1770941470837,12.73252778,78.539,78.511,0.50765777]
[1770941471140,12.73252778,78.539,78.512,0.50765777]
[1770941472041,12.7308126,78.55,78.514,0.50765777]
[1770941472344,17.16274134,78.55,78.514,0.50765777]
[1770941472743,44.53889517,78.583,78.521,0.47029097]
[1770941472916,4.43192874,78.57,78.521,0.47029097]
[1770941473122,4.43192874,78.57,78.531,0.47029097]
[1770941473720,17.15791487,78.58,78.54,4.43192874]
[1770941474047,17.15791487,78.58,78.541,0.47029097]
[1770941474429,0.49425666,78.569,78.533,0.47029097]
[1770941475540,0.49423467,78.559,78.533,0.47029097]
[1770941476244,0.49421293,78.539,78.511,0.47029097]
[1770941476421,0.49421293,78.539,78.512,0.47029097]
[1770941479049,4.43192874,78.52,78.5,0.67029097]
[1770941479629,0.49414921,78.528,78.501,0.47029097]
[1770941481139,12.73447349,78.527,78.502,0.47029097]
[1770941481341,0.49410794,78.526,78.502,0.47029097]
[1770941483749,0.49410794,78.526,78.503,0.47029097]
[1770941484340,17.16599937,78.53,78.503,0.47029097]
[1770941485548,17.16599937,78.53,78.504,0.47029097]
[1770941486046,12.73407063,78.53,78.506,0.47029097]
[1770941488136,4.43192874,78.53,78.506,0.47029097]
[1770941488544,0.49397077,78.529,78.506,0.47029097]
[1770941490452,4.43192874,78.53,78.508,0.49507007]
[1770941491156,12.73414916,78.529,78.508,0.49507007]
[1770941492458,13.21011418,78.529,78.508,0.49507007]
[1770941494242,0.46830496,78.528,78.508,0.49507007]
[1770941494445,0.46830496,78.526,78.508,0.49507007]
[1770941494650,0.46830496,78.526,78.501,0.45474641]
[1770941496952,0.46830496,78.524,78.501,0.45474641]
[1770941500271,0.46830496,78.522,78.501,0.45474641]
[1770941500455,0.46830496,78.529,78.503,0.45474641]
[1770941500864,13.20245412,78.529,78.503,0.45474641]
[1770941502375,12.73277872,78.538,78.505,0.45474641]
[1770941502569,13.20108368,78.538,78.505,0.45474641]
[1770941503052,0.46830496,78.537,78.505,0.45474641]
[1770941503977,0.46830496,78.537,78.507,0.45474641]
[1770941504269,4.43192874,78.55,78.511,0.45474641]
[1770941504463,0.46830496,78.561,78.521,0.45474641]
[1770941504670,4.43192874,78.56,78.521,0.45474641]
[1770941504852,0.46830496,78.559,78.521,0.45474641]
[1770941505871,13.19770582,78.559,78.522,12.73528437]
[1770941506063,0.46830496,78.558,78.523,0.45474641]
[1770941506974,12.72940086,78.559,78.531,0.45474641]
[1770941507558,0.46830496,78.558,78.531,0.45474641]
[1770941507770,0.46830496,78.558,78.523,0.45474641]
[1770941507960,0.46830496,78.549,78.523,0.45474641]
[1770941509373,0.46830496,78.547,78.523,0.45474641]
[1770941510680,45.9,78.57,78.517,0.45474641]
[1770941510681,4.9002337,78.54,78.517,0.45474641]
[1770941510878,0.46830496,78.539,78.511,0.45474641]
[1770941513403,0.46830496,78.537,78.511,0.45474641]
[1770941513982,0.46830496,78.537,78.512,13.19165287]
[1770941514184,0.46830496,78.537,78.513,0.45474641]
[1770941514688,0.46830496,78.537,78.508,0.45474641]
[1770941515297,4.4386687,78.54,78.508,0.45474641]
[1770941515612,12.73252778,78.539,78.511,0.45474641]
[1770941516705,13.20083274,78.539,78.511,0.45474641]
[1770941517308,12.73252778,78.539,78.511,0.45474641]
[1770941517509,13.20115699,78.537,78.511,0.45474641]
[1770941520419,13.20115699,78.537,78.5,4.6386687]
[1770941520420,4.4386687,78.52,78.5,12.93869873]
[1770941520597,0.49035161,78.519,78.5,13.43030156]
[1770941521008,0.49035161,78.519,78.501,0.49160283]
[1770941522703,0.49035161,78.519,78.49,12.74033783]
[1770941522704,0.49035161,78.518,78.49,12.74033783]
[1770941522910,0.29340432,78.509,78.483,0.49160283]
[1770941523306,0.29340432,78.509,78.48,0.2]
[1770941523501,0.29339212,78.499,78.48,0.2]
[1770941523703,4.4386687,78.5,78.481,0.49160283]
[1770941523906,0.29339212,78.506,78.481,0.49160283]
[1770941524422,12.73804216,78.505,78.481,0.49160283]
[1770941525426,4.4386687,78.5,78.481,0.49160283]
[1770941527221,12.73901578,78.499,78.481,0.49160283]
[1770941529624,0.29332181,78.517,78.481,0.49160283]
[1770941529820,4.4386687,78.51,78.483,0.49160283]
[1770941530328,4.4386687,78.5,78.483,0.49160283]
[1770941530509,0.29331056,78.489,78.47,0.1]
[1770941531717,0.29329944,78.498,78.471,0.49160283]
[1770941532027,4.4386687,78.49,78.471,0.49160283]
[1770941532708,12.74063881,78.489,78.471,0.49160283]
[1770941533124,0.29327757,78.488,78.47,0.1]
[1770941533744,4.4386687,78.48,78.47,0.1]
[1770941534038,0.29327757,78.479,78.46,0.2]
[1770941534206,4.4386687,78.47,78.446,0.49160283]
[1770941534518,4.73193553,78.46,78.44,0.1]
[1770941535030,17.18412022,78.46,78.44,0.59160283]
[1770941536735,4.4386687,78.46,78.44,0.59160283]
[1770941536940,12.74421094,78.467,78.44,0.59160283]
[1770941537114,4.4386687,78.46,78.44,0.59160283]
[1770941537936,4.4386687,78.45,78.44,0.1]
[1770941538107,0.19323533,78.449,78.43,0.1]
[1770941538309,4.4386687,78.45,78.43,0.1]
[1770941538310,0.19322508,78.447,78.43,0.1]
[1770941540120,4.4386687,78.45,78.43,0.1]
[1770941540425,4.4386687,78.46,78.431,0.49160283]
[1770941540626,4.4386687,78.46,78.433,0.49160283]
[1770941541420,12.74453578,78.465,78.433,0.49160283]
[1770941541421,12.93773078,78.465,78.433,0.49160283]
[1770941541634,4.4386687,78.46,78.433,0.49160283]
[1770941542833,17.18411808,78.46,78.433,0.49160283]
[1770941545413,0.19315649,78.459,78.433,0.49160283]
[1770941546131,4.4386687,78.45,78.433,0.49160283]
[1770941546712,0.19314714,78.454,78.433,0.49160283]
[1770941547736,17.18411808,78.46,78.433,0.49160283]
[1770941549233,17.37724684,78.46,78.433,0.49160283]
[1770941550430,45.98,78.47,78.435,0.46040282]
[1770941550431,63.16242502,78.47,78.435,0.46040282]
[1770941551438,63.35551826,78.47,78.435,0.46040282]
[1770941551733,0.19309324,78.469,78.435,0.46040282]
[1770941554236,12.93710784,78.468,78.437,0.49915891]
[1770941554442,12.93710784,78.468,78.431,0.49915891]
[1770941554443,0.19305932,78.459,78.431,0.49915891]
[1770941556916,4.4386687,78.45,78.431,0.49915891]
[1770941557320,4.4386687,78.45,78.43,0.1]
[1770941557321,0.19303489,78.449,78.43,0.1]
[1770941558221,0.19303489,78.449,78.43,0.59915891]
[1770941558828,4.4386687,78.44,78.43,0.1]
[1770941559324,4.4386687,78.44,78.42,0.1]
[1770941559640,4.4386687,78.44,78.42,0.59915891]
[1770941560131,4.4386687,78.45,78.42,0.59915891]
[1770941560843,4.4386687,78.45,78.421,0.49915891]
[1770941561339,17.37865802,78.45,78.421,0.49915891]
[1770941562433,44.60987681,78.458,78.421,0.49915891]
[1770941563344,12.74567284,78.458,78.422,12.7515238]
[1770941563560,12.74567284,78.458,78.423,0.49915891]
[1770941567144,12.74567284,78.458,78.425,0.49915891]
[1770941568637,12.74567284,78.458,78.431,0.49915891]
[1770941568837,46.14,78.465,78.431,0.49915891]
[1770941569044,46.14,78.465,78.441,0.49915891]
[1770941570548,58.88465184,78.465,78.441,0.49915891]
[1770941572254,58.88465184,78.465,78.42,0.1]
[1770941572255,0.19292469,78.453,78.429,0.49915891]
[1770941573362,44.60701221,78.463,78.421,12.75168641]
[1770941573363,12.74486063,78.463,78.431,0.49915891]
[1770941575771,46.14,78.465,78.441,0.49915891]
[1770941576579,46.14,78.465,78.426,50.64]
[1770941576580,0.19289838,78.463,78.434,0.49915891]
[1770941577575,12.7446982,78.464,78.434,0.49915891]
[1770941580161,12.93757764,78.464,78.434,0.49915891]
[1770941581480,0.19286114,78.463,78.434,0.49915891]
[1770941584376,0.19284346,78.461,78.434,0.49915891]
[1770941585058,12.74502306,78.462,78.434,0.49915891]
[1770941587372,12.93784945,78.462,78.434,0.49915891]
[1770941587572,0.19282639,78.461,78.434,0.49915891]
[1770941587956,4.4477835,78.46,78.434,0.49915891]
[1770941588157,0.19282639,78.46,78.434,0.49915891]
[1770941589676,0.19281533,78.464,78.434,0.49915891]
[1770941591988,12.74356131,78.471,78.435,12.74941033]
[1770941592153,12.74356131,78.471,78.436,0.49055352]
[1770941592361,46.38,78.472,78.441,0.49055352]
[1770941592554,12.74189533,78.482,78.451,0.49055352]
[1770941592977,12.74088276,78.488,78.451,0.49055352]
[1770941593475,0.19279396,78.509,78.471,0.49055352]
[1770941593981,12.93018712,78.509,78.473,0.49055352]
[1770941594171,12.73739316,78.509,78.473,0.49055352]
[1770941594363,12.73739316,78.509,78.481,0.49055352]
[1770941595063,12.73669919,78.514,78.481,0.49055352]
[1770941595967,0.19278878,78.515,78.481,0.49055352]
[1770941596175,0.19278878,78.515,78.483,0.49055352]
[1770941598980,12.92932745,78.515,78.485,0.49055352]
[1770941599176,0.19276371,78.514,78.485,0.49055352]
[1770941602082,0.19276371,78.514,78.487,0.49055352]
[1770941602875,12.92856032,78.519,78.487,0.49055352]
[1770941603393,0.19274468,78.518,78.487,0.49055352]
[1770941604092,0.19274005,78.539,78.501,0.49055352]
[1770941604273,12.92526783,78.539,78.51,4.4477835]
[1770941604472,0.47597417,78.538,78.5,4.4477835]
[1770941606392,0.47597417,78.536,78.503,0.49055352]
[1770941608679,0.47597417,78.536,78.497,50.7]
[1770941608680,0.47597417,78.536,78.511,0.49055352]
[1770941610376,46.5,78.543,78.52,4.4477835]
[1770941610702,46.5,78.543,78.477,60.94848724]
[1770941610703,0.2,78.55,78.532,0.49738459]
[1770941610997,0.49680878,78.568,78.541,0.49738459]
[1770941611603,12.72799012,78.567,78.541,0.49738459]
[1770941611900,13.2247989,78.567,78.541,0.49738459]
[1770941612299,12.72658929,78.576,78.541,0.49738459]
[1770941612496,0.49680878,78.575,78.551,0.49738459]
[1770941614799,12.92429398,78.59,78.56,4.4477835]
[1770941614979,12.92429398,78.59,78.561,0.46680463]
[1770941617105,0.2,78.59,78.571,0.46680463]
[1770941617281,0.2,78.6,78.581,0.46680463]
[1770941620400,0.2,78.6,78.583,0.46680463]
[1770941620703,0.2,78.6,78.591,0.46680463]
[1770941621421,0.45945881,78.599,78.577,0.46680463]
[1770941621591,0.2,78.6,78.577,0.46680463]
[1770941621791,0.2,78.6,78.581,0.46680463]
[1770941622010,0.45945881,78.599,78.576,12.72652131]
[1770941622202,0.45945881,78.599,78.575,0.46680463]
[1770941622521,0.45945881,78.599,78.575,13.19349887]
[1770941622904,0.45945881,78.598,78.569,0.46680463]
[1770941623091,0.45945881,78.589,78.557,12.72948736]
[1770941623409,0.45945881,78.589,78.561,0.46680463]
[1770941623590,0.45945881,78.598,78.561,0.46680463]
[1770941623915,0.45945881,78.597,78.561,0.46680463]
[1770941626826,0.45945881,78.595,78.563,0.46680463]
[1770941627910,4.4477835,78.58,78.547,0.46680463]
[1770941628115,4.4477835,78.59,78.547,0.46680463]
[1770941628611,0.45945881,78.588,78.547,0.46680463]
[1770941628913,0.45945881,78.586,78.548,0.46680463]
[1770941629510,0.45945881,78.579,78.548,0.46680463]
[1770941630209,0.45945881,78.569,78.538,0.46680463]
[1770941630412,0.45945881,78.569,78.541,0.46680463]
[1770941630917,0.45945881,78.567,78.541,0.46680463]
[1770941631518,12.72782812,78.568,78.541,0.46680463]
[1770941631819,13.18728693,78.568,78.541,0.46680463]
[1770941632003,0.45945881,78.567,78.541,0.46680463]
[1770941634123,0.45945881,78.565,78.541,0.46680463]
[1770941636020,0.45945881,78.57,78.543,0.46680463]
[1770941638323,0.45945881,78.568,78.543,0.46680463]
[1770941640513,0.49150913,78.579,78.545,0.48813642]
[1770941640702,0.49150913,78.578,78.551,0.48813642]
[1770941641833,0.49150913,78.569,78.538,12.732664]
[1770941642320,0.49150913,78.569,78.539,0.48813642]
[1770941645122,0.49150913,78.567,78.541,0.48813642]
[1770941645329,0.49150913,78.573,78.541,0.48813642]
[1770941646143,12.7270534,78.573,78.541,0.48813642]
[1770941646331,0.49150913,78.572,78.541,0.48813642]
[1770941647128,0.49150913,78.572,78.542,12.73204145]
[1770941647323,0.49150913,78.572,78.543,0.48813642]
[1770941648132,0.49150913,78.559,78.539,50.78]
[1770941648435,0.49150913,78.569,78.54,4.43447813]
[1770941648638,0.49150913,78.569,78.541,0.48813642]
[1770941649718,0.49150913,78.567,78.541,0.48813642]
[1770941652023,0.49150913,78.565,78.541,0.48813642]
[1770941653743,0.49150913,78.565,78.543,0.48813642]
[1770941655023,12.72847614,78.564,78.543,0.48813642]
[1770941655248,4.43447813,78.55,78.518,13.22400093]
[1770941655427,0.49150913,78.549,78.518,13.22400093]
[1770941655628,0.49150913,78.549,78.519,0.48813642]
[1770941655856,0.49150913,78.549,78.521,0.48813642]
[1770941656229,12.7310689,78.548,78.521,0.48813642]
[1770941656431,0.49150913,78.547,78.521,0.48813642]
[1770941658038,0.49150913,78.545,78.521,0.48813642]
[1770941658249,0.49150913,78.545,78.506,31.84456363]
[1770941658250,0.08284621,78.529,78.501,0.48813642]
[1770941660143,0.08284384,78.528,78.501,0.48813642]
[1770941660346,12.73414916,78.529,78.492,0.48813642]
[1770941660347,0.08284151,78.519,78.492,0.48813642]
[1770941660533,50.92076833,78.554,78.501,0.48813642]
[1770941660534,0.08284151,78.539,78.501,0.48813642]
[1770941660736,0.08284151,78.536,78.501,0.48813642]
[1770941662148,0.08284151,78.536,78.502,12.73852895]
[1770941662335,0.08284151,78.536,78.503,0.48813642]
[1770941663940,12.73210779,78.542,78.511,0.48813642]
[1770941664854,0.08283465,78.547,78.512,12.73690646]
[1770941665060,0.08283465,78.547,78.513,0.48813642]
[1770941665445,0.08283021,78.539,78.513,0.48813642]
[1770941667159,4.43447813,78.55,78.513,0.48813642]
[1770941667366,12.73069896,78.551,78.521,0.48813642]
[1770941669050,12.8135227,78.551,78.521,0.48813642]
[1770941669760,12.8135227,78.551,78.522,0.48813642]
[1770941670262,0.08281955,78.549,78.522,0.48813642]
[1770941672053,12.72928626,78.559,78.524,0.48899983]
[1770941672054,0.08281546,78.558,78.524,0.48899983]
[1770941672561,0.08281546,78.558,78.53,4.43447813]
[1770941672764,0.08281546,78.558,78.531,0.48899983]
[1770941675461,0.08280562,78.549,78.52,0.46277384]
[1770941675867,0.08280562,78.549,78.521,0.46277384]
[1770941676764,0.08280373,78.562,78.531,0.46277384]
[1770941677150,4.43447813,78.56,78.531,0.46277384]
[1770941677351,0.08280185,78.559,78.531,0.46277384]
[1770941678550,0.08279999,78.558,78.531,0.46277384]
[1770941680468,0.08279999,78.558,78.533,0.46277384]
[1770941681961,4.43447813,78.55,78.527,0.46277384]